bitfinex/quotes_ETHUSD_20250220
["timestamp","ask_amount","ask_price","bid_price","bid_amount"]
[1740073991571,4.41318,2736.9,2736.4,8.63867509]
[1740073991786,8.06702,2736.9,2736.4,8.63867509]
[1740073992116,4.41318,2736.9,2736.5,3.6542]
[1740073992309,4.41318,2736.9,2736.5,3.83474446]
[1740073992511,3.65357,2737.1,2736.6,3.65416]
[1740073993712,3.65357,2737.1,2736.7,0.71960606]
[1740073993915,3.65357,2737.1,2736.7,0.90015052]
[1740073994222,3.65325,2737.3,2736.8,4.42307]
[1740073994527,7.30657,2737.3,2736.8,4.42307]
[1740073994815,3.65343,2737.2,2736.8,0.7693]
[1740073995013,3.65343,2737.2,2736.8,1.0363]
[1740073995721,3.6535,2737.1,2736.8,1.0363]
[1740073996273,3.65337,2737.2,2736.8,1.0363]
[1740073997918,3.65336,2737.2,2736.8,1.0363]
[1740073998394,3.65336,2737.2,2736.9,0.1804202]
[1740073999326,3.65336,2737.2,2736.8,1.0363]
[1740073999627,3.6535,2737.1,2736.8,1.0363]
[1740074002842,3.6535,2737.1,2736.8,0.267]
[1740074003030,7.3071,2737.1,2736.8,0.267]
[1740074003231,3.6535,2737.1,2736.8,0.267]
[1740074003432,3.65396,2736.8,2736.5,0.267]
[1740074003595,3.65409,2736.7,2736.5,0.267]
[1740074005047,3.65388,2736.9,2736.5,0.267]
[1740074005544,3.65384,2736.9,2736.5,0.267]
[1740074005945,3.65351,2737.1,2736.6,0.8044]
[1740074006112,0.8093,2737.2,2736.7,3.43306917]
[1740074006436,3.65338,2737.2,2736.7,3.43306917]
[1740074006644,3.65338,2737.2,2736.7,7.08700917]
[1740074006995,3.65357,2737.1,2736.7,3.43306917]
[1740074007552,3.65364,2737.0,2736.7,3.43306917]
[1740074007849,3.65338,2737.2,2736.7,7.08706917]
[1740074008220,4.45571,2737.4,2736.9,3.65369]
[1740074008413,3.65331,2737.3,2736.8,3.65389]
[1740074009440,1.248171,2737.4,2736.8,3.65389]
[1740074009624,3.65301,2737.5,2736.9,0.7677]
[1740074009803,3.65311,2737.4,2736.9,4.4214]
[1740074010616,3.65311,2737.4,2737.1,0.74063506]
[1740074011245,3.6533,2737.3,2736.9,0.7677]
[1740074011559,3.6533,2737.3,2736.9,1.51206604]
[1740074012225,3.6533,2737.3,2736.9,0.7677]
[1740074014256,0.7674,2737.6,2737.0,7.08658917]
[1740074014553,3.65297,2737.5,2737.1,3.6534]
[1740074015652,3.65293,2737.6,2737.1,3.6535]
[1740074015861,3.65292,2737.6,2737.2,0.7986]
[1740074016041,7.30587,2737.6,2737.2,0.7986]
[1740074016248,3.65292,2737.6,2737.2,0.7986]
[1740074016725,3.65276,2737.7,2737.2,4.45188]
[1740074017556,3.65276,2737.7,2737.2,5.60571792]
[1740074017722,3.65265,2737.8,2737.3,4.64387594]
[1740074017921,3.6527,2737.7,2737.3,4.64387594]
[1740074018133,4.4751,2738.0,2737.5,3.65293]
[1740074018337,4.4751,2738.0,2737.3,4.42380511]
[1740074018521,3.65251,2737.9,2737.5,0.8076]
[1740074019467,3.65226,2738.1,2737.5,0.8076]
[1740074019669,3.65238,2738.0,2737.5,4.46055]
[1740074020016,3.65245,2737.9,2737.5,4.46055]
[1740074020367,3.65261,2737.8,2737.5,0.8076]
[1740074023466,0.806,2738.2,2737.5,4.46055]
[1740074023625,3.65236,2738.0,2737.5,4.46047]
[1740074023964,3.65244,2737.9,2737.5,0.8076]
[1740074024864,3.65218,2738.1,2737.5,4.46053]
[1740074025024,3.65238,2738.0,2737.5,4.46053]
[1740074025837,3.65244,2737.9,2737.5,0.8076]
[1740074026237,3.65216,2738.1,2737.6,3.65276]
[1740074026565,3.65232,2738.0,2737.5,5.71430351]
[1740074026940,3.65232,2738.0,2737.5,9.36717351]
[1740074027268,3.65232,2738.0,2737.5,9.36711351]
[1740074027563,3.65232,2738.0,2737.5,9.36712351]
[1740074027768,3.65244,2737.9,2737.5,5.71421351]
[1740074028065,3.65244,2737.9,2737.5,9.36710351]
[1740074028272,3.65216,2738.1,2737.5,5.71421351]
[1740074028561,3.65236,2738.0,2737.5,5.71421351]
[1740074029875,3.65255,2737.9,2737.5,2.06134351]
[1740074030026,3.65255,2737.9,2737.5,0.8076]
[1740074030371,3.65255,2737.9,2737.5,4.46055]
[1740074035534,3.65255,2737.9,2737.5,4.4605]
[1740074039085,3.65255,2737.9,2737.5,0.8076]
[1740074039572,3.65255,2737.9,2737.5,4.46056]
[1740074040450,3.65236,2738.0,2737.5,4.46056]
[1740074040645,3.65249,2737.9,2737.5,6.12719179]
[1740074041172,3.65235,2738.0,2737.5,6.12719179]
[1740074041478,7.30474,2738.0,2737.5,6.12719179]
[1740074041882,3.65235,2738.0,2737.5,6.12719179]
[1740074042177,7.30476,2738.0,2737.5,6.12719179]
[1740074042586,3.65245,2737.9,2737.5,6.12719179]
[1740074044364,3.65258,2737.8,2737.5,2.47423179]
[1740074044561,3.65245,2737.9,2737.5,2.47423179]
[1740074044762,3.65264,2737.8,2737.6,0.17954936]
[1740074044979,3.6527,2737.7,2737.6,0.17954936]
[1740074046439,3.6529,2737.6,2737.4,0.17954936]
[1740074047272,3.65296,2737.5,2737.4,0.17954936]
[1740074047575,3.6529,2737.6,2737.4,0.17954936]
[1740074047817,3.65296,2737.5,2737.4,0.17954936]
[1740074048210,3.6529,2737.6,2737.4,0.17954936]
[1740074048417,3.65289,2737.6,2737.4,0.17954936]
[1740074049284,3.65218,2738.1,2737.6,0.8229]
[1740074049285,3.65219,2738.1,2737.6,0.8229]
[1740074049476,3.65238,2738.0,2737.7,1.66663179]
[1740074049676,3.65252,2737.9,2737.7,1.66663179]
[1740074049887,3.65238,2738.0,2737.7,1.66663179]
[1740074050106,3.65238,2738.0,2737.6,0.8229]
[1740074050107,0.8112,2738.3,2737.9,1.66663179]
[1740074050429,3.65221,2738.1,2737.9,1.66663179]
[1740074050588,3.65221,2738.1,2737.7,5.31932179]
[1740074050786,3.6521,2738.2,2737.7,5.31932179]
[1740074050995,3.6521,2738.2,2737.8,0.7759]
[1740074051171,3.65207,2738.2,2737.8,0.7759]
[1740074051401,7.30421,2738.2,2737.8,0.7759]
[1740074051885,7.30422,2738.2,2737.8,0.7759]
[1740074052090,7.30422,2738.2,2737.8,1.49822054]
[1740074052315,3.65217,2738.1,2737.8,1.49822054]
[1740074052992,3.65204,2738.2,2737.8,1.49822054]
[1740074053190,3.65204,2738.2,2737.8,0.7759]
[1740074053395,4.017244,2738.2,2737.8,0.7759]
[1740074053615,3.65269,2737.8,2737.5,0.7667]
[1740074053946,3.65276,2737.7,2737.5,0.71902929]
[1740074054425,3.65276,2737.7,2737.4,0.266]
[1740074054583,3.65257,2737.8,2737.4,0.266]
[1740074054922,3.65238,2738.0,2737.4,4.63866754]
[1740074055095,3.65257,2737.8,2737.4,0.98568754]
[1740074055312,3.65252,2737.9,2737.4,4.63869754]
[1740074055517,3.65252,2737.9,2737.5,0.1797081]
[1740074055809,3.65252,2737.9,2737.6,0.7575]
[1740074056208,3.65231,2738.0,2737.6,0.7575]
[1740074056393,3.6523,2738.0,2737.6,0.7575]
[1740074056597,3.6521,2738.2,2737.6,4.41028]
[1740074056837,3.65232,2738.0,2737.6,0.7575]
[1740074057043,3.65232,2738.0,2737.7,0.1797081]
[1740074058539,3.65232,2738.0,2737.6,4.41032]
[1740074059651,3.65232,2738.0,2737.6,0.7575]
[1740074060850,3.65248,2737.9,2737.6,0.7575]
[1740074061047,4.4671,2738.4,2737.4,1.50738754]
[1740074061048,3.65264,2737.8,2737.4,1.50738754]
[1740074061344,3.65285,2737.6,2737.2,3.43683208]
[1740074061506,3.65303,2737.5,2737.2,0.266]
[1740074062015,3.65323,2737.3,2736.9,4.26893208]
[1740074062317,3.65323,2737.3,2736.9,4.53493208]
[1740074062855,3.65344,2737.2,2736.9,1.83832611]
[1740074063024,3.6535,2737.1,2736.9,1.57232611]
[1740074063441,3.6535,2737.1,2736.9,0.74022611]
[1740074064254,3.6534,2737.2,2736.9,0.74022611]
[1740074067150,3.65337,2737.2,2736.9,0.74022611]
[1740074067348,0.7765,2737.3,2736.9,0.74022611]
[1740074067533,4.42981,2737.3,2736.9,0.74022611]
[1740074068155,3.65264,2737.8,2737.2,4.26043208]
[1740074068455,3.65306,2737.5,2737.2,4.26043208]
[1740074068637,3.65317,2737.4,2737.0,0.8314]
[1740074068962,3.65306,2737.5,2737.1,3.65349]
[1740074069254,3.65306,2737.5,2737.0,4.48501]
[1740074069564,3.65306,2737.5,2737.0,5.74319582]
[1740074070241,4.4355,2737.7,2737.0,5.74319582]
[1740074070242,3.65284,2737.6,2737.0,5.74319582]
[1740074070445,3.65302,2737.5,2737.0,5.74319582]
[1740074071835,3.65302,2737.5,2737.0,9.39674582]
[1740074072555,3.65302,2737.5,2737.0,5.74313582]
[1740074072942,3.65284,2737.6,2737.0,5.74313582]
[1740074072943,3.65284,2737.6,2737.1,3.65344]
[1740074073272,3.65284,2737.6,2737.2,3.65336]
[1740074073834,3.65284,2737.6,2737.1,1.3573634]
[1740074074551,3.65284,2737.6,2737.2,0.266]
[1740074074747,3.65264,2737.8,2737.2,0.266]
[1740074075080,3.65303,2737.5,2737.2,3.70283208]
[1740074075873,3.65284,2737.6,2737.2,7.35617208]
[1740074076176,3.65284,2737.6,2737.3,0.7575]
[1740074076385,3.65261,2737.8,2737.3,0.7575]
[1740074076537,3.92679772,2738.2,2737.5,3.65286]
[1740074076538,7.30476,2738.0,2737.5,3.65286]
[1740074076978,3.65217,2738.1,2737.6,4.40873]
[1740074077159,3.65203,2738.2,2737.6,4.40865]
[1740074077344,4.41642,2738.4,2737.7,0.78454821]
[1740074077553,3.65173,2738.5,2737.9,3.65243]
[1740074077761,3.65164,2738.5,2737.9,3.65243]
[1740074077967,3.65166,2738.5,2737.9,3.65243]
[1740074078170,3.65166,2738.5,2738.0,0.266]
[1740074078366,3.65166,2738.5,2738.0,3.91828]
[1740074078652,3.65158,2738.6,2738.1,4.20913208]
[1740074078865,0.8143,2739.0,2738.1,4.20913208]
[1740074079066,3.6516,2738.6,2738.1,4.20913208]
[1740074079247,3.65132,2738.8,2738.2,3.65194]
[1740074079656,7.30266,2738.8,2738.2,3.65194]
[1740074079996,3.65132,2738.8,2738.2,5.66494528]
[1740074080195,3.65137,2738.7,2738.2,5.66493528]
[1740074080367,3.65144,2738.7,2738.2,2.01300528]
[1740074080699,3.65144,2738.7,2738.2,5.66502528]
[1740074082589,3.65136,2738.7,2738.2,5.66502528]
[1740074083278,3.65132,2738.8,2738.2,2.01300528]
[1740074083487,3.65136,2738.7,2738.2,2.01300528]
[1740074083794,3.65154,2738.6,2738.2,2.01300528]
[1740074084183,3.65154,2738.6,2738.2,5.66502528]
[1740074084380,3.65154,2738.6,2738.2,0.71677535]
[1740074086111,3.65165,2738.5,2738.2,0.71677535]
[1740074086314,3.65154,2738.6,2738.2,0.71677535]
[1740074086808,3.6517,2738.5,2738.2,0.71677535]
[1740074087015,3.65176,2738.4,2738.2,0.98277535]
[1740074087220,3.6519,2738.3,2738.2,0.71677535]
[1740074087417,4.457196,2738.4,2737.9,1.0298]
[1740074087586,3.65207,2738.2,2737.9,1.0298]
[1740074087785,3.6523,2738.0,2737.7,0.7562]
[1740074087969,3.6523,2738.0,2737.9,0.73082364]
[1740074088170,3.65163,2738.5,2737.9,0.73082364]
[1740074088171,3.65191,2738.3,2737.9,0.73082364]
[1740074088372,3.65176,2738.4,2738.0,0.8329]
[1740074088680,3.65164,2738.5,2738.0,4.48512]
[1740074088988,3.65164,2738.5,2738.1,3.65216]
[1740074089293,3.65164,2738.5,2738.0,4.48509]
[1740074089699,4.43496,2738.7,2738.1,3.65215]
[1740074090321,3.6515,2738.6,2738.1,3.65215]
[1740074091217,4.43496,2738.7,2738.2,3.652]
[1740074091382,3.65124,2738.8,2738.3,3.65179]
[1740074091589,3.65124,2738.8,2738.4,0.7792]
[1740074092117,3.65096,2739.0,2738.5,3.6515]
[1740074092272,3.65111,2738.9,2738.5,3.6515]
[1740074093488,3.65098,2739.0,2738.5,3.6515]
[1740074093688,3.65098,2739.0,2738.5,7.30307]
[1740074094028,3.65098,2739.0,2738.6,3.65148]
[1740074094787,3.65098,2739.0,2738.7,0.7396005]
[1740074095122,4.42487,2739.2,2738.7,0.7396005]
[1740074095295,3.65089,2739.1,2738.7,0.7396005]
[1740074096132,4.42487,2739.2,2738.7,0.7396005]
[1740074096304,3.6509,2739.1,2738.7,0.7396005]
[1740074097026,3.6509,2739.1,2738.8,0.7833]
[1740074097839,3.65104,2739.0,2738.7,0.7396005]
[1740074098015,3.65111,2738.9,2738.7,0.7396005]
[1740074098220,7.30186,2739.1,2738.7,0.7396005]
[1740074098396,3.65098,2739.0,2738.6,4.44277]
[1740074100331,0.774,2739.0,2738.5,0.266]
[1740074100534,3.65131,2738.8,2738.6,0.71649734]
[1740074101003,7.30266,2738.8,2738.6,0.71649734]
[1740074101411,3.65136,2738.7,2738.4,0.266]
[1740074101621,3.65125,2738.8,2738.4,0.266]
[1740074101826,3.65118,2738.9,2738.4,4.391867]
[1740074102028,3.65118,2738.9,2738.5,3.65162]
[1740074102229,7.30237,2738.9,2738.4,4.391867]
[1740074102536,4.42502,2739.0,2738.6,0.7814]
[1740074102928,7.30209,2739.0,2738.6,0.7814]
[1740074103243,4.41468,2739.2,2738.6,0.7814]
[1740074103394,3.65093,2739.1,2738.6,4.43278]
[1740074103597,4.41468,2739.2,2738.6,4.43278]
[1740074103832,3.65103,2739.0,2738.6,4.43278]
[1740074104144,3.65103,2739.0,2738.6,0.7814]
[1740074104348,3.65163,2738.5,2738.4,0.266]
[1740074104509,3.65186,2738.4,2738.2,0.266]
[1740074105049,3.6519,2738.3,2738.0,0.8121]
[1740074105336,3.652,2738.3,2738.0,0.8121]
[1740074106444,3.65186,2738.4,2738.0,0.8121]
[1740074106798,3.65196,2738.3,2738.0,0.8121]
[1740074107001,3.65196,2738.3,2737.8,5.47292598]
[1740074107599,3.65204,2738.2,2737.8,5.47292598]
[1740074107937,3.65218,2738.1,2737.8,0.814]
[1740074109905,3.65204,2738.2,2737.8,0.814]
[1740074110597,4.47066,2738.5,2738.0,3.65222]
[1740074110802,3.65183,2738.4,2737.9,3.65243]
[1740074111236,3.65166,2738.5,2738.0,3.65227]
[1740074111436,3.65166,2738.5,2737.8,8.74183708]
[1740074111437,3.65166,2738.5,2737.9,3.65238]
[1740074111654,3.65185,2738.4,2737.9,3.65238]
[1740074111833,3.65162,2738.6,2738.1,0.7736]
[1740074112031,7.30324,2738.6,2738.1,4.42569]
[1740074112217,3.65163,2738.5,2738.1,4.42569]
[1740074112549,3.65163,2738.5,2738.1,0.7736]
[1740074114941,3.65163,2738.5,2738.1,4.42576]
[1740074115351,3.65151,2738.6,2738.1,4.42576]
[1740074115705,3.65166,2738.5,2738.1,4.42576]
[1740074115905,3.65166,2738.5,2738.1,0.7736]
[1740074116103,3.65222,2738.1,2737.6,0.7787]
[1740074116308,3.65231,2738.0,2737.7,0.7419271]
[1740074117115,3.65231,2738.0,2737.4,4.43187]
[1740074117325,3.65243,2737.9,2737.5,0.266]
[1740074117757,3.65259,2737.8,2737.5,0.266]
[1740074118115,3.65259,2737.8,2737.4,5.17672239]
[1740074118312,3.65231,2738.0,2737.4,6.08627263]
[1740074118511,3.65203,2738.2,2737.5,3.65288]
[1740074118717,3.65227,2738.1,2737.6,3.65274]
[1740074119458,3.65225,2738.1,2737.6,3.65274]
[1740074119659,3.65183,2738.4,2737.9,0.7663]
[1740074119808,3.65192,2738.3,2737.9,0.7663]
[1740074120153,4.46892,2738.5,2737.9,4.41873]
[1740074120454,3.65176,2738.4,2737.9,4.41873]
[1740074120640,3.65164,2738.5,2738.1,3.65216]
[1740074120837,3.65159,2738.6,2738.1,0.807086]
[1740074121063,3.65169,2738.5,2738.1,0.266]
[1740074121416,7.3032,2738.6,2738.1,3.91815]
[1740074121649,3.65159,2738.6,2738.1,3.91815]
[1740074121813,3.65171,2738.5,2738.1,0.266]
[1740074122652,3.65159,2738.6,2738.1,0.266]
[1740074122881,7.3032,2738.6,2738.1,3.91814]
[1740074123162,3.65159,2738.6,2738.1,4.82610746]
[1740074123961,3.65174,2738.5,2738.1,1.17396746]
[1740074124157,3.65191,2738.3,2738.1,0.266]
[1740074124357,3.65203,2738.2,2738.1,0.266]
[1740074124522,3.65203,2738.2,2737.9,0.7663]
[1740074124721,3.65225,2738.1,2737.7,0.7821]
[1740074124923,3.65205,2738.2,2737.7,0.266]
[1740074125237,3.6523,2738.1,2737.7,0.266]
[1740074125625,3.65216,2738.1,2737.7,0.266]
[1740074125826,0.8318,2738.4,2737.7,4.46078747]
[1740074126031,3.65203,2738.2,2737.7,4.46078747]
[1740074126350,3.65217,2738.1,2737.7,0.80809747]
[1740074126718,3.65223,2738.1,2737.7,0.80809747]
[1740074127177,3.6523,2738.0,2737.7,0.266]
[1740074128565,3.65243,2737.9,2737.7,0.266]
[1740074130270,3.65243,2737.9,2737.5,1.51991011]
[1740074130644,3.65243,2737.9,2737.5,5.17286011]
[1740074130849,3.65243,2737.9,2737.5,1.51991011]
[1740074131077,4.48515,2738.2,2737.6,3.65281]
[1740074131247,3.65205,2738.2,2737.6,3.65275]
[1740074131775,3.65205,2738.2,2737.7,3.65259]
[1740074131975,3.65191,2738.3,2737.9,0.7696]
[1740074132288,0.7948,2738.7,2737.9,0.7696]
[1740074132448,0.7948,2738.7,2738.0,3.65222]
[1740074132449,3.65163,2738.5,2738.0,3.65222]
[1740074132644,3.65174,2738.5,2738.0,3.65222]
[1740074132849,3.65225,2738.1,2737.7,0.7952]
[1740074133080,3.65239,2738.0,2737.7,0.7952]
[1740074133254,3.65253,2737.9,2737.7,0.7952]
[1740074133581,3.65239,2738.0,2737.6,0.28753867]
[1740074133939,3.65239,2738.0,2737.5,5.45191011]
[1740074134142,3.65239,2738.0,2737.5,6.36240512]
[1740074135685,3.65249,2737.9,2737.5,1.79901011]
[1740074135979,3.65249,2737.9,2737.6,0.17984401]
[1740074136774,3.65249,2737.9,2737.5,5.45196011]
[1740074138913,3.65249,2737.9,2737.6,3.43683208]
[1740074140816,3.65257,2737.8,2737.6,3.43683208]
[1740074141010,0.7948,2738.2,2737.6,3.43683208]
[1740074141307,3.6525,2737.9,2737.6,3.43683208]
[1740074141944,3.65192,2738.3,2737.3,0.7882]
[1740074141945,3.65281,2737.7,2737.3,0.7882]
[1740074142518,3.65289,2737.6,2737.3,0.7882]
[1740074142743,3.65289,2737.6,2737.1,0.7649]
[1740074143118,3.65312,2737.4,2737.1,0.7649]
[1740074143321,3.65308,2737.5,2737.1,0.7649]
[1740074144847,3.65289,2737.6,2737.1,4.41836]
[1740074145150,3.65289,2737.6,2737.1,5.66732725]
[1740074145535,3.65297,2737.5,2737.1,2.01386725]
[1740074145730,3.65289,2737.6,2737.1,0.7649]
[1740074145931,3.65303,2737.5,2737.1,0.7649]
[1740074146579,0.7709,2737.8,2737.1,0.7649]
[1740074146948,3.65294,2737.6,2737.1,4.41838]
[1740074147144,0.7709,2737.8,2737.1,4.41838]
[1740074147361,3.65297,2737.5,2737.1,4.41838]
[1740074147657,3.65297,2737.5,2737.1,0.7649]
[1740074147857,3.65289,2737.6,2737.1,4.41832]
[1740074148058,3.65299,2737.5,2737.3,3.43683208]
[1740074148375,3.65282,2737.7,2737.3,3.43683208]
[1740074148534,3.65289,2737.6,2737.3,3.43683208]
[1740074148876,3.65282,2737.7,2737.3,3.43683208]
[1740074149072,3.0,2738.3,2737.1,2.01386925]
[1740074149073,4.40962,2738.0,2737.6,3.43683208]
[1740074149437,3.65249,2737.9,2737.6,3.43683208]
[1740074150284,3.6523,2738.0,2737.6,3.43683208]
[1740074150838,0.7579,2738.4,2737.7,3.65263]
[1740074151038,3.6522,2738.1,2737.6,7.08959208]
[1740074151336,3.6522,2738.1,2737.7,1.15733921]
[1740074151535,3.6522,2738.1,2737.6,7.08959208]
[1740074153482,3.6522,2738.1,2737.6,7.80476331]
[1740074154879,7.30449,2738.1,2737.6,7.80476331]
[1740074155251,3.65254,2737.9,2737.6,3.43683208]
[1740074155454,3.65263,2737.8,2737.6,3.43683208]
[1740074155789,3.65272,2737.7,2737.5,0.8309]
[1740074155960,3.65272,2737.7,2737.3,4.23013208]
[1740074156159,3.65291,2737.6,2737.3,4.23013208]
[1740074156474,3.65303,2737.5,2737.3,3.43683208]
[1740074156685,3.6531,2737.4,2737.3,3.43683208]
[1740074158692,3.65298,2737.5,2737.3,3.43683208]
[1740074159076,7.30603,2737.5,2737.3,3.43683208]
[1740074159392,3.6531,2737.4,2737.3,3.43683208]
[1740074160289,3.65336,2737.2,2737.1,0.7933]
[1740074160990,4.384008,2737.2,2737.1,0.7933]
[1740074164103,3.65336,2737.2,2736.8,3.43683208]
[1740074164392,3.65364,2737.0,2736.8,3.43683208]
[1740074164796,3.0,2737.6,2736.8,3.43683208]
[1740074164952,3.65276,2737.7,2736.8,3.43683208]
[1740074165153,3.65343,2737.2,2736.8,3.43683208]
[1740074165353,3.65343,2737.2,2736.8,4.51132729]
[1740074165769,3.65318,2737.4,2737.1,3.43683208]
[1740074166387,3.65316,2737.4,2737.1,3.43683208]
[1740074166569,7.30637,2737.4,2737.1,3.43683208]
[1740074166781,7.30635,2737.4,2737.1,3.43683208]
[1740074166966,7.30636,2737.4,2737.1,3.43683208]
[1740074167296,3.65251,2737.9,2737.2,3.65334]
[1740074167520,3.65259,2737.8,2737.6,3.43683208]
[1740074167795,3.6527,2737.7,2737.3,3.43683208]
[1740074167997,3.65226,2738.1,2737.6,3.43683208]
[1740074168156,3.6523,2738.0,2737.6,3.43683208]
[1740074168352,3.65248,2737.9,2737.6,3.43683208]
[1740074168553,3.6523,2738.0,2737.6,3.43683208]
[1740074168962,3.6525,2737.9,2737.6,3.43683208]
[1740074169154,0.791,2737.9,2737.6,3.43683208]
[1740074169354,3.6523,2738.0,2737.7,0.7742]
[1740074169857,3.65239,2738.0,2737.7,0.7742]
[1740074170073,3.0,2738.4,2737.7,0.7742]
[1740074170398,3.65205,2738.2,2738.0,0.7988]
[1740074170564,3.65216,2738.1,2738.0,0.7988]
[1740074174334,3.65265,2737.8,2737.7,0.7544]
[1740074174620,3.65256,2737.8,2737.7,0.7544]
[1740074174913,7.30505,2737.9,2737.7,0.7544]
[1740074175115,3.65204,2738.2,2737.8,0.7544]
[1740074175326,3.65193,2738.3,2737.8,0.7544]
[1740074175327,3.65217,2738.1,2737.8,0.7544]
[1740074176316,7.30441,2738.1,2737.8,0.7544]
[1740074176518,4.69080406,2738.6,2737.8,0.7544]
[1740074176519,0.7582,2738.6,2737.9,3.43683208]
[1740074176812,3.65163,2738.5,2738.0,0.8226]
[1740074177121,3.65216,2738.1,2738.0,0.8226]
[1740074177919,3.65204,2738.2,2738.0,0.8226]
[1740074178270,3.65216,2738.1,2738.0,0.8226]
[1740074178467,3.65216,2738.1,2736.8,7.09070208]
[1740074178672,3.65265,2737.8,2737.7,0.7684]
[1740074179703,3.65272,2737.7,2737.3,0.8228]
[1740074181266,3.65307,2737.5,2737.3,0.8228]
[1740074182622,3.65291,2737.6,2737.3,0.8228]
[1740074183608,3.6529,2737.6,2737.3,0.8228]
[1740074183817,3.65262,2737.8,2737.3,0.8228]
[1740074184115,3.65274,2737.7,2737.3,0.8228]
[1740074184801,3.65262,2737.8,2737.4,0.7831]
[1740074185001,7.30531,2737.8,2737.4,0.7831]
[1740074185212,3.65262,2737.8,2737.4,0.7831]
[1740074185511,7.30532,2737.8,2737.4,0.7831]
[1740074185727,3.65262,2737.8,2737.4,0.7831]
[1740074186628,3.65271,2737.7,2737.4,0.7831]
[1740074187135,7.30499,2737.9,2737.5,3.43683208]
[1740074187507,0.515352,2738.0,2737.5,3.43683208]
[1740074187707,3.65277,2737.7,2737.5,3.43683208]
[1740074188038,3.6525,2737.9,2737.5,3.43683208]
[1740074188203,3.6525,2737.9,2737.6,0.8313]
[1740074188409,3.65259,2737.8,2737.6,0.8313]
[1740074188837,7.30525,2737.8,2737.6,0.8313]
[1740074189019,3.6527,2737.7,2737.6,0.8313]
[1740074190806,3.65245,2737.9,2737.6,0.8313]
[1740074190994,3.65266,2737.8,2737.6,0.8313]
[1740074191733,3.6527,2737.7,2737.6,0.8313]
[1740074192106,3.65265,2737.8,2737.6,0.8313]
[1740074192640,7.3053,2737.8,2737.6,0.8313]
[1740074192935,3.6527,2737.7,2737.6,0.8313]
[1740074194301,3.6527,2737.7,2737.5,3.43683208]
[1740074194641,3.6527,2737.7,2737.4,0.8139]
[1740074195442,0.813738,2737.7,2737.2,1.54620804]
[1740074195596,3.65309,2737.5,2737.2,1.54620804]
[1740074195795,3.65313,2737.4,2737.2,0.8079]
[1740074196199,3.65337,2737.2,2736.9,4.26093208]
[1740074197309,0.8289,2737.2,2736.7,0.8233]
[1740074197531,3.6537,2737.0,2736.7,0.8233]
[1740074200063,3.0,2737.9,2736.7,0.8233]
[1740074200064,0.78,2737.7,2737.0,0.7568]
[1740074200234,3.65317,2737.4,2737.2,3.43683208]
[1740074200438,3.65323,2737.3,2737.2,3.43683208]
[1740074201556,3.65323,2737.3,2737.0,0.7568]
[1740074202362,3.65323,2737.3,2736.9,3.43683208]
[1740074202363,3.6536,2737.1,2736.9,3.43683208]
[1740074202665,3.6539,2736.8,2736.6,3.43683208]
[1740074203266,3.65396,2736.8,2736.5,0.7568]
[1740074203424,3.65396,2736.8,2736.5,4.19363208]
[1740074204469,3.65388,2736.9,2736.5,4.19363208]
[1740074204765,3.65414,2736.7,2736.5,4.19363208]
[1740074204922,3.65414,2736.7,2736.5,3.43683208]
[1740074205124,0.8269,2736.8,2736.5,3.43683208]
[1740074205322,3.65385,2736.9,2736.5,3.43683208]
[1740074206526,3.65391,2736.8,2736.5,3.43683208]
[1740074206932,4.42659,2737.0,2736.5,3.43683208]
[1740074207132,3.65378,2736.9,2736.5,3.43683208]
[1740074208428,4.461817,2736.9,2736.3,4.19853208]
[1740074208677,3.65403,2736.8,2736.3,4.19853208]
[1740074209168,3.65401,2736.8,2736.3,4.19853208]
[1740074210929,3.65411,2736.7,2736.3,4.19853208]
[1740074211380,3.65387,2736.9,2736.3,7.85303208]
[1740074211533,3.65387,2736.9,2736.3,5.72320547]
[1740074211866,3.65401,2736.8,2736.3,5.72320547]
[1740074212634,3.65409,2736.7,2736.3,4.19853208]
[1740074213382,7.30799,2736.8,2736.3,4.19853208]
[1740074213739,3.65404,2736.7,2736.3,4.19853208]
[1740074214434,3.65378,2736.9,2736.3,4.19853208]
[1740074214758,4.42659,2737.0,2736.6,3.43683208]
[1740074214943,8.522969,2737.0,2736.6,3.43683208]
[1740074215151,3.65378,2736.9,2736.6,3.43683208]
[1740074216037,3.6539,2736.8,2736.6,3.43683208]
[1740074216440,3.65378,2736.9,2736.6,3.43683208]
[1740074216637,7.30763,2736.9,2736.6,3.43683208]
[1740074217072,3.65401,2736.8,2736.6,3.43683208]
[1740074217476,3.65378,2736.9,2736.6,3.43683208]
[1740074218077,4.42657,2737.0,2736.6,3.43683208]
[1740074218276,8.0803,2737.0,2736.6,3.43683208]
[1740074218452,3.65381,2736.9,2736.6,3.43683208]
[1740074218647,4.42657,2737.0,2736.6,3.43683208]
[1740074218852,8.08031,2737.0,2736.6,3.43683208]
[1740074219543,3.65377,2736.9,2736.6,3.43683208]
[1740074219876,4.42657,2737.0,2736.6,3.43683208]
[1740074220179,4.43268,2737.2,2736.6,4.21153208]
[1740074220339,8.08616,2737.2,2736.6,4.21153208]
[1740074220540,4.43268,2737.2,2736.6,4.21153208]
[1740074220737,4.43268,2737.2,2736.6,7.86563208]
[1740074220941,0.808602,2737.1,2736.6,4.21153208]
[1740074221142,4.43279,2737.2,2736.6,7.86568208]
[1740074221545,0.7793,2737.2,2736.9,3.43683208]
[1740074221744,3.6535,2737.1,2736.9,3.43683208]
[1740074221978,3.6535,2737.1,2736.6,4.21153208]
[1740074222183,7.3071,2737.1,2736.6,4.21153208]
[1740074222587,3.6535,2737.1,2736.6,4.21153208]
[1740074223403,4.46442,2737.9,2737.0,4.46342]
[1740074223556,4.46436,2737.9,2737.3,4.46294]
[1740074223752,4.46433,2737.9,2737.6,3.43683208]